fUSD/lending_fUSD_20240613
["ID","MTS","AMOUNT","RATE_DAILY","PERIOD"]
[329404276,1718320345527,-500.0,0.00025205,3]
[329404277,1718320345556,-500.0,0.00025205,3]
[329404278,1718320345578,-500.0,0.00025205,3]
[329404279,1718320345589,-624.06,0.00025205,3]
[329404280,1718320345621,-500.0,0.00025205,3]
[329404281,1718320345650,-500.0,0.00025205,3]
[329404282,1718320345680,-500.0,0.00025205,3]
[329404283,1718320345704,-818.04,0.00025205,3]
[329404284,1718320345722,-500.0,0.00025205,3]
[329404285,1718320345741,-368.11941191,0.00025205,3]
[329404286,1718320345779,-500.0,0.00025205,3]
[329404287,1718320345802,-500.0,0.00025205,3]
[329404288,1718320345817,-500.0,0.00025205,3]
[329404289,1718320345829,-500.0,0.00025205,3]
[329404290,1718320345842,-228.27,0.00025205,3]
[329404291,1718320345870,-500.0,0.00025205,3]
[329404292,1718320345893,-500.0,0.00025205,3]
[329404293,1718320345905,-420.72,0.00025205,3]
[329404294,1718320345924,-500.0,0.00025205,3]
[329404295,1718320345958,-500.0,0.00025205,3]
[329404296,1718320345978,-500.0,0.00025205,3]
[329404297,1718320346015,-500.0,0.00025205,3]
[329404298,1718320346026,-544.56,0.00025205,3]
[329404299,1718320346065,-500.0,0.00025205,3]
[329404300,1718320346086,-333.08,0.00025205,3]
[329404301,1718320346114,-500.0,0.00025205,3]
[329404302,1718320346126,-500.0,0.00025205,3]
[329404303,1718320346154,-500.0,0.00025205,3]
[329404304,1718320346192,-500.0,0.00025205,3]
[329404305,1718320346225,-500.0,0.00025205,3]
[329404306,1718320346242,-752.51,0.00025205,3]
[329404307,1718320346257,-941.51,0.00025205,3]
[329404308,1718320346273,-513.09,0.00025205,3]
[329404309,1718320346286,-548.6,0.00025205,3]
[329404310,1718320346308,-500.0,0.00025205,3]
[329404311,1718320346328,-500.0,0.00025205,3]
[329404312,1718320346339,-500.0,0.00025205,3]
[329404313,1718320346352,-500.0,0.00025205,3]
[329404314,1718320346381,-500.0,0.00025205,3]
[329404315,1718320346409,-500.0,0.00025205,3]
[329404316,1718320346419,-758.83,0.00025205,3]
[329404317,1718320346430,-500.0,0.00025205,3]
[329404318,1718320346440,-500.0,0.00025205,3]
[329404319,1718320346452,-500.0,0.00025205,2]
[329404320,1718320346468,-3116.86,0.00025205,3]
[329404321,1718320346488,-500.0,0.00025205,3]
[329404322,1718320346501,-500.0,0.00025205,3]
[329404323,1718320346524,-692.24,0.00025205,3]
[329404324,1718320346535,-500.0,0.00025205,3]
[329404325,1718320346557,-500.0,0.00025205,3]
[329404326,1718320346580,-500.0,0.00025205,3]
[329404327,1718320346595,-151.0,0.00025205,7]
[329404328,1718320346611,-151.0,0.00025205,7]
[329404329,1718320346622,-500.0,0.00025205,3]
[329404330,1718320346635,-321.686013,0.00025205,7]
[329404331,1718320346646,-321.686013,0.00025205,7]
[329404332,1718320346658,-4313.72,0.00025205,3]
[329404333,1718320346673,-517.9,0.00025205,3]
[329404334,1718320346684,-318.7899943,0.00025205,3]
[329404335,1718320346695,-500.0,0.00025205,3]
[329404336,1718320346706,-677.98,0.00025205,3]
[329404337,1718320346722,-500.0,0.00025205,3]
[329404338,1718320346734,-500.0,0.00025205,3]
[329404339,1718320346744,-500.0,0.00025205,3]
[329404340,1718320346768,-500.0,0.00025205,3]
[329404341,1718320346800,-500.0,0.00025205,3]
[329404342,1718320346811,-344.2,0.00025205,3]
[329404343,1718320346823,-819.7,0.00025205,3]
[329404344,1718320346833,-500.0,0.00025205,3]
[329404345,1718320346845,-500.0,0.00025205,3]
[329404346,1718320346862,-500.0,0.00025205,3]
[329404347,1718320346877,-484.37,0.00025205,3]
[329404348,1718320346890,-500.0,0.00025205,3]
[329404349,1718320346912,-500.0,0.00025205,3]
[329404350,1718320346932,-601.07,0.00025205,3]
[329404351,1718320346943,-500.0,0.00025205,3]
[329404352,1718320346969,-500.0,0.00025205,3]
[329404353,1718320347022,-151.0,0.00025205,7]
[329404354,1718320347033,-204.853072,0.00025205,7]
[329404355,1718320347057,-500.0,0.00025205,3]
[329404356,1718320347080,-969.2,0.00025205,3]
[329404357,1718320347104,-4171.67,0.00025205,3]
[329404358,1718320347123,-500.0,0.00025205,3]
[329404359,1718320347157,-500.0,0.00025205,3]
[329404360,1718320347172,-151.0,0.00025205,7]
[329404361,1718320347183,-151.0,0.00025205,7]
[329404362,1718320347201,-529.42,0.00025205,3]
[329404363,1718320347213,-500.0,0.00025205,3]
[329404364,1718320347225,-1472.23,0.00025205,3]
[329404365,1718320347241,-500.0,0.00025205,3]
[329404366,1718320347272,-500.0,0.00025205,3]
[329404367,1718320347289,-500.0,0.00025205,3]
[329404368,1718320347321,-151.0,0.00025205,7]
[329404369,1718320347339,-500.0,0.00025205,3]
[329404370,1718320347364,-500.0,0.00025205,3]
[329404371,1718320347375,-500.0,0.00025205,3]
[329404372,1718320347410,-416.57940381,0.00025205,3]
[329404373,1718320347425,-500.0,0.00025205,3]
[329404374,1718320347448,-500.0,0.00025205,3]
[329404375,1718320347475,-1427.62,0.00025205,3]
[329404376,1718320347525,-5019.37,0.00025205,3]
[329404377,1718320347588,-500.0,0.00025205,3]
[329404378,1718320347601,-500.0,0.00025205,3]
[329404379,1718320347626,-500.0,0.00025205,3]
[329404380,1718320347638,-2071.22,0.00025205,3]
[329404381,1718320347669,-500.0,0.00025205,3]
[329404382,1718320347680,-944.06,0.00025205,3]
[329404383,1718320347709,-500.0,0.00025205,3]
[329404384,1718320347748,-151.0,0.00025205,7]
[329404385,1718320347771,-6339.12,0.00025205,3]
[329404386,1718320347807,-500.0,0.00025205,3]
[329404387,1718320347830,-151.0,0.00025205,7]
[329404388,1718320347856,-577.87,0.00025205,3]
[329404389,1718320347868,-500.0,0.00025205,3]
[329404390,1718320347884,-500.0,0.00025205,3]
[329404391,1718320347896,-2580.79,0.00025205,3]
[329404392,1718320347916,-500.0,0.00025205,3]
[329404393,1718320347962,-1591.45,0.00025205,3]
[329404394,1718320347998,-151.0,0.00025205,7]
[329404395,1718320348011,-151.0,0.00025205,7]
[329404396,1718320348033,-500.0,0.00025205,3]
[329404397,1718320348047,-500.0,0.00025205,3]
[329404398,1718320348064,-500.0,0.00025205,3]
[329404399,1718320348080,-502.52,0.00025205,3]
[329404400,1718320348092,-500.0,0.00025205,3]
[329404401,1718320348112,-500.0,0.00025205,3]
[329404402,1718320348129,-500.0,0.00025205,3]
[329404403,1718320348147,-500.0,0.00025205,3]
[329404404,1718320348162,-156.754014,0.00025205,7]
[329404405,1718320348180,-156.754014,0.00025205,7]
[329404406,1718320348203,-500.0,0.00025205,3]
[329404407,1718320348216,-1478.87,0.00025205,3]
[329404408,1718320348244,-500.0,0.00025205,3]
[329404409,1718320348255,-500.0,0.00025205,3]
[329404410,1718320348271,-500.0,0.00025205,3]
[329404411,1718320348282,-500.0,0.00025205,3]
[329404412,1718320348294,-1234.57,0.00025205,3]
[329404413,1718320348305,-156.754014,0.00025205,7]
[329404414,1718320348352,-156.754014,0.00025205,7]
[329404415,1718320348369,-930.16,0.00025205,3]
[329404416,1718320348379,-500.0,0.00025205,3]
[329404417,1718320348391,-500.0,0.00025205,3]
[329404418,1718320348401,-500.0,0.00025205,3]
[329404419,1718320348434,-560.64629209,0.00025205,3]
[329404420,1718320348445,-500.0,0.00025205,3]
[329404421,1718320348457,-500.0,0.00025205,3]
[329404422,1718320348467,-500.0,0.00025205,3]
[329404423,1718320348478,-1971.12,0.00025205,3]
[329404424,1718320348488,-500.0,0.00025205,3]
[329404425,1718320348499,-743.44,0.00025205,3]
[329404426,1718320348517,-500.0,0.00025205,3]
[329404427,1718320348540,-500.0,0.00025205,3]
[329404428,1718320348556,-500.0,0.00025205,3]
[329404429,1718320348576,-610.48,0.00025205,3]
[329404430,1718320348596,-500.0,0.00025205,3]
[329404431,1718320348608,-500.0,0.00025205,3]
[329404432,1718320348618,-661.13,0.00025205,3]
[329404433,1718320348628,-500.0,0.00025205,3]
[329404434,1718320348639,-963.44,0.00025205,3]
[329404435,1718320348672,-500.0,0.00025205,3]
[329404436,1718320348682,-533.87,0.00025205,3]
[329404437,1718320348694,-500.0,0.00025205,3]
[329404438,1718320348707,-1022.84,0.00025205,3]
[329404439,1718320348729,-1126.87,0.00025205,3]
[329404440,1718320348740,-500.0,0.00025205,3]
[329404441,1718320348753,-2267.4,0.00025205,3]
[329404442,1718320348776,-821.07,0.00025205,3]
[329404443,1718320348792,-500.0,0.00025205,3]
[329404444,1718320348815,-500.0,0.00025205,3]
[329404445,1718320348833,-500.0,0.00025205,3]
[329404446,1718320348849,-2310.9,0.00025205,3]
[329404447,1718320348860,-500.0,0.00025205,3]
[329404448,1718320348882,-581.4732051,0.00025205,3]
[329404449,1718320348895,-500.0,0.00025205,3]
[329404450,1718320348912,-3363.13,0.00025205,3]
[329404451,1718320348936,-384.40598342,0.00025205,3]
[329404452,1718320348956,-507.26302974,0.00025205,3]
[329404453,1718320348966,-500.0,0.00025205,3]
[329404454,1718320348976,-500.0,0.00025205,3]
[329404455,1718320348996,-500.0,0.00025205,3]
[329404456,1718320349013,-1220.15,0.00025205,3]
[329404457,1718320349024,-500.0,0.00025205,3]
[329404458,1718320349036,-500.0,0.00025205,3]
[329404459,1718320349052,-2361.0,0.00025205,3]
[329404460,1718320349080,-500.0,0.00025205,3]
[329404461,1718320349101,-500.0,0.00025205,3]
[329404462,1718320349113,-500.0,0.00025205,3]
[329404463,1718320349128,-500.0,0.00025205,3]
[329404464,1718320349138,-500.0,0.00025205,3]
[329404465,1718320349192,-500.0,0.00025205,3]
[329404466,1718320349212,-500.0,0.00025205,3]
[329404467,1718320349224,-500.0,0.00025205,3]
[329404468,1718320349239,-845.89,0.00025205,3]
[329404469,1718320349250,-500.0,0.00025205,3]
[329404470,1718320349264,-500.0,0.00025205,3]
[329404471,1718320349274,-500.0,0.00025205,3]
[329404472,1718320349293,-500.0,0.00025205,3]
[329404473,1718320349316,-1860.08,0.00025205,3]
[329404474,1718320349341,-620.18,0.00025205,3]
[329404475,1718320349368,-500.0,0.00025205,3]
[329404476,1718320349379,-500.0,0.00025205,3]
[329404477,1718320349397,-500.0,0.00025205,3]
[329404478,1718320349430,-621.59,0.00025205,3]
[329404479,1718320349456,-500.0,0.00025205,3]
[329404480,1718320349480,-1133.15,0.00025205,3]
[329404481,1718320349508,-500.0,0.00025205,3]
[329404482,1718320349519,-609.83,0.00025205,3]
[329404483,1718320349529,-500.0,0.00025205,3]
[329404484,1718320349545,-500.0,0.00025205,3]
[329404485,1718320349556,-11319.94,0.00025205,3]
[329404486,1718320349588,-500.0,0.00025205,3]
[329404487,1718320349601,-500.0,0.00025205,3]
[329404488,1718320349618,-1255.47,0.00025205,3]
[329404489,1718320349630,-500.0,0.00025205,3]
[329404490,1718320349653,-500.0,0.00025205,3]
[329404491,1718320349672,-500.0,0.00025205,3]
[329404492,1718320349692,-712.06,0.00025205,3]
[329404493,1718320349703,-500.0,0.00025205,3]
[329404494,1718320349726,-542.32,0.00025205,3]
[329404495,1718320349745,-500.0,0.00025205,3]
[329404496,1718320349756,-1517.96,0.00025205,3]
[329404497,1718320349775,-646.26,0.00025205,3]
[329404498,1718320349787,-500.0,0.00025205,3]
[329404499,1718320349820,-500.0,0.00025205,3]
[329404500,1718320349832,-500.0,0.00025205,3]
[329404501,1718320349853,-500.0,0.00025205,3]
[329404502,1718320349907,-500.0,0.00025205,3]
[329404503,1718320349926,-1612.23,0.00025205,3]
[329404504,1718320349950,-500.0,0.00025205,3]
[329404505,1718320349963,-1147.19,0.00025205,3]
[329404506,1718320350016,-500.0,0.00025205,3]
[329404507,1718320350077,-3424.63,0.00025205,3]
[329404508,1718320350095,-500.0,0.00025205,3]
[329404509,1718320350124,-1385.38,0.00025205,3]
[329404510,1718320350172,-500.0,0.00025205,3]
[329404511,1718320350201,-500.0,0.00025205,3]
[329404512,1718320350260,-500.0,0.00025205,3]
[329404513,1718320350278,-500.0,0.00025205,3]
[329404514,1718320350297,-500.0,0.00025205,3]
[329404515,1718320350309,-335.92258402,0.00025205,3]
[329404516,1718320350365,-8166.43,0.00025205,3]
[329404517,1718320350391,-1946.85,0.00025205,3]
[329404518,1718320350409,-500.0,0.00025205,3]
[329404519,1718320350452,-1453.22,0.00025205,3]
[329404520,1718320350463,-500.0,0.00025205,3]
[329404521,1718320350480,-151.0,0.00025205,7]
[329404522,1718320350495,-151.0,0.00025205,7]
[329404523,1718320350523,-500.0,0.00025205,3]
[329404524,1718320350541,-504.86,0.00025205,3]
[329404525,1718320350552,-500.0,0.00025205,3]
[329404526,1718320350567,-500.0,0.00025205,3]
[329404527,1718320350581,-1070.05,0.00025205,3]
[329404528,1718320350594,-500.0,0.00025205,3]
[329404529,1718320350606,-1582.75,0.00025205,3]
[329404530,1718320350617,-1624.17,0.00025205,3]
[329404531,1718320350635,-500.0,0.00025205,3]
[329404532,1718320350649,-500.0,0.00025205,3]
[329404533,1718320350660,-715.19,0.00025205,3]
[329404534,1718320350686,-2369.41,0.00025205,3]
[329404535,1718320350704,-500.0,0.00025205,3]
[329404536,1718320350721,-4254.95,0.00025205,3]
[329404537,1718320350744,-500.0,0.00025205,3]
[329404538,1718320350757,-151.0,0.00025205,7]
[329404539,1718320350770,-500.0,0.00025205,3]
[329404540,1718320350813,-151.0,0.00025205,7]
[329404541,1718320350842,-500.0,0.00025205,3]
[329404542,1718320350869,-1054.26,0.00025205,3]
[329404543,1718320350894,-500.0,0.00025205,3]
[329404544,1718320350928,-853.69,0.00025205,3]
[329404545,1718320350966,-500.0,0.00025205,3]
[329404546,1718320350979,-2395.39,0.00025205,3]
[329404547,1718320351031,-4096.83,0.00025205,3]
[329404548,1718320351061,-500.0,0.00025205,3]
[329404549,1718320351088,-2151.91,0.00025205,3]
[329404550,1718320351100,-6315.94,0.00025205,3]
[329404551,1718320351144,-1587.47,0.00025205,3]
[329404552,1718320351157,-500.0,0.00025205,3]
[329404553,1718320351174,-151.0,0.00025205,7]
[329404554,1718320351199,-2319.76,0.00025205,3]
[329404555,1718320351228,-500.0,0.00025205,3]
[329404556,1718320351259,-151.0,0.00025205,7]
[329404557,1718320351272,-10030.19,0.00025205,3]
[329404558,1718320351344,-500.0,0.00025205,3]
[329404559,1718320351384,-2226.25,0.00025205,3]
[329404560,1718320351412,-702.19,0.00025205,3]
[329404561,1718320351424,-500.0,0.00025205,3]
[329404562,1718320351437,-500.0,0.00025205,3]
[329404563,1718320351448,-568.42,0.00025205,3]
[329404564,1718320351475,-710.66,0.00025205,3]
[329404565,1718320351491,-500.0,0.00025205,3]
[329404566,1718320351509,-500.0,0.00025205,3]
[329404567,1718320351522,-500.0,0.00025205,3]
[329404568,1718320351549,-1702.81,0.00025205,3]
[329404569,1718320351576,-151.0,0.00025205,7]
[329404570,1718320351621,-151.0,0.00025205,7]
[329404571,1718320351672,-1103.72,0.00025205,3]
[329404572,1718320351685,-8704.11,0.00025205,3]
[329404573,1718320351698,-3569.13,0.00025205,3]
[329404574,1718320351710,-500.0,0.00025205,3]
[329404575,1718320351740,-1464.04,0.00025205,3]
[329404576,1718320351754,-500.0,0.00025205,3]
[329404577,1718320351767,-275.15269089,0.00025205,3]
[329404578,1718320351802,-500.0,0.00025205,3]
[329404579,1718320351829,-1252.91,0.00025205,3]
[329404580,1718320351841,-500.0,0.00025205,3]
[329404581,1718320351866,-500.0,0.00025205,3]
[329404582,1718320351908,-500.0,0.00025205,3]
[329404583,1718320351948,-151.0,0.00025205,7]
[329404584,1718320351983,-151.0,0.00025205,7]
[329404585,1718320352019,-3534.62,0.00025205,3]
[329404586,1718320352034,-500.0,0.00025205,3]
[329404587,1718320352049,-897.26,0.00025205,3]
[329404588,1718320352081,-1716.4,0.00025205,3]
[329404589,1718320352096,-500.0,0.00025205,3]
[329404590,1718320352108,-551.79,0.00025205,3]
[329404591,1718320352139,-1940.51,0.00025205,3]
[329404592,1718320352157,-500.0,0.00025205,3]
[329404593,1718320352211,-500.0,0.00025205,3]
[329404594,1718320352227,-500.0,0.00025205,3]
[329404595,1718320352255,-931.95,0.00025205,3]
[329404596,1718320352313,-500.0,0.00025205,3]
[329404597,1718320352334,-1002.85,0.00025205,3]
[329404598,1718320352385,-6328.79,0.00025205,3]
[329404599,1718320352399,-874.49,0.00025205,3]
[329404600,1718320352417,-5552.19,0.00025205,3]
[329404601,1718320352445,-163.96770312,0.00025205,3]
[329404602,1718320352475,-500.0,0.00025205,3]
[329404603,1718320352496,-500.0,0.00025205,3]
[329404604,1718320352511,-1760.43,0.00025205,3]
[329404605,1718320352553,-548.59,0.00025205,3]
[329404606,1718320352572,-885.2,0.00025205,3]
[329404607,1718320352612,-20754.34,0.00025205,3]
[329404608,1718320352648,-500.0,0.00025205,3]
[329404609,1718320352676,-2363.03,0.00025205,3]
[329404610,1718320352712,-500.0,0.00025205,3]
[329404611,1718320352734,-500.0,0.00025205,3]
[329404612,1718320352757,-2574.46,0.00025205,3]
[329404613,1718320352771,-9692.4,0.00025205,3]
[329404614,1718320352799,-512.01685378,0.00025205,3]
[329404615,1718320352813,-500.0,0.00025205,3]
[329404616,1718320352856,-4255.28,0.00025205,3]
[329404617,1718320352895,-515.56,0.00025205,3]
[329404618,1718320352910,-359.24,0.00025205,3]
[329404619,1718320352936,-4020.29,0.00025205,3]
[329404620,1718320352952,-16122.68,0.00025205,3]
[329404621,1718320352969,-1598.32,0.00025205,3]
[329404622,1718320352982,-500.0,0.00025205,3]
[329404623,1718320353005,-9860.84,0.00025205,3]
[329404624,1718320353032,-3348.04,0.00025205,3]
[329404625,1718320353081,-500.0,0.00025205,3]
[329404626,1718320353098,-500.0,0.00025205,3]
[329404627,1718320353133,-500.0,0.00025205,3]
[329404628,1718320353158,-500.0,0.00025205,3]
[329404629,1718320353194,-500.0,0.00025205,3]
[329404630,1718320353242,-1512.21,0.00025205,3]
[329404631,1718320353300,-1381.13,0.00025205,3]
[329404632,1718320353315,-500.0,0.00025205,3]
[329404633,1718320353370,-2078.81,0.00025205,3]
[329404634,1718320353389,-1121.88,0.00025205,3]
[329404635,1718320353408,-500.0,0.00025205,3]
[329404636,1718320353422,-500.0,0.00025205,3]
[329404637,1718320353452,-2882.9,0.00025205,3]
[329404638,1718320353463,-500.0,0.00025205,3]
[329404639,1718320353512,-500.0,0.00025205,3]
[329404640,1718320353543,-500.0,0.00025205,3]
[329404641,1718320353590,-500.0,0.00025205,3]
[329404642,1718320353622,-768.74,0.00025205,3]
[329404643,1718320353637,-1580.73,0.00025205,3]
[329404644,1718320353652,-500.0,0.00025205,3]
[329404645,1718320353676,-500.0,0.00025205,3]
[329404646,1718320353708,-2469.92,0.00025205,3]
[329404647,1718320353723,-500.0,0.00025205,3]
[329404648,1718320353757,-500.0,0.00025205,3]
[329404649,1718320353770,-1495.31,0.00025205,3]
[329404650,1718320353794,-500.0,0.00025205,3]
[329404651,1718320353860,-1255.6,0.00025205,3]
[329404652,1718320353911,-500.0,0.00025205,3]
[329404653,1718320353937,-500.0,0.00025205,3]
[329404654,1718320353949,-1134.0,0.00025205,3]
[329404655,1718320353961,-511.63,0.00025205,3]
[329404656,1718320353993,-1296.73,0.00025205,3]
[329404657,1718320354087,-500.0,0.00025205,3]
[329404658,1718320354113,-500.0,0.00025205,3]
[329404659,1718320354138,-3231.34,0.00025205,3]
[329404660,1718320354248,-2669.02,0.00025205,3]
[329404661,1718320354261,-2483.37,0.00025205,3]
[329404662,1718320354277,-500.0,0.00025205,3]
[329404663,1718320354289,-500.0,0.00025205,3]
[329404664,1718320354320,-680.59,0.00025205,3]
[329404665,1718320354342,-500.0,0.00025205,3]
[329404666,1718320354368,-500.0,0.00025205,3]
[329404667,1718320354381,-862.24,0.00025205,3]
[329404668,1718320354415,-500.0,0.00025205,3]
[329404669,1718320354442,-905.4,0.00025205,3]
[329404670,1718320354467,-500.0,0.00025205,3]
[329404671,1718320354481,-500.0,0.00025205,3]
[329404672,1718320354528,-707.54,0.00025205,3]
[329404673,1718320354550,-500.0,0.00025205,2]
[329404674,1718320354574,-529.12,0.00025205,3]
[329404675,1718320354588,-3060.94,0.00025205,3]
[329404676,1718320354599,-4842.93,0.00025205,3]
[329404677,1718320354615,-500.0,0.00025205,3]
[329404678,1718320354626,-4672.3,0.00025205,3]
[329404679,1718320354639,-623.46,0.00025205,3]
[329404680,1718320354651,-500.0,0.00025205,3]
[329404681,1718320354677,-500.0,0.00025205,3]
[329404682,1718320354710,-1609.35,0.00025205,3]
[329404683,1718320354726,-803.92,0.00025205,3]
[329404684,1718320354738,-500.0,0.00025205,3]
[329404685,1718320354752,-500.0,0.00025205,3]
[329404686,1718320354808,-637.09785996,0.00025205,3]
[329404687,1718320354858,-500.0,0.00025205,3]
[329404688,1718320354884,-151.0,0.00025205,7]
[329404689,1718320354916,-151.0,0.00025205,7]
[329404690,1718320354930,-554.71,0.00025205,3]
[329404691,1718320354942,-19728.76,0.00025205,3]
[329404692,1718320354976,-523.16,0.00025205,3]
[329404693,1718320354999,-500.0,0.00025205,3]
[329404694,1718320355018,-1759.58,0.00025205,3]
[329404695,1718320355053,-500.0,0.00025205,3]
[329404696,1718320355077,-1665.85,0.00025205,3]
[329404697,1718320355108,-500.0,0.00025205,3]
[329404698,1718320355152,-500.0,0.00025205,3]
[329404699,1718320355193,-500.0,0.00025205,3]
[329404700,1718320355207,-500.0,0.00025205,3]
[329404701,1718320355239,-1066.0,0.00025294,2]
[329404702,1718320355265,-172.39,0.00025376,2]
[329404703,1718320355299,-1611.49489153,0.00025478,5]
[329404704,1718320355338,-1000.0,0.00025478,2]
[329404705,1718320355386,-500.0,0.00025479,3]
[329404706,1718320355432,-500.0,0.00025479,3]
[329404707,1718320355444,-500.0,0.00025479,3]
[329404708,1718320355476,-500.0,0.00025479,3]
[329404709,1718320355518,-500.0,0.00025479,3]
[329404710,1718320355554,-500.0,0.00025479,3]
[329404711,1718320355590,-500.0,0.00025479,3]
[329404712,1718320355625,-500.0,0.00025479,3]
[329404713,1718320355653,-500.0,0.00025479,3]
[329404714,1718320355679,-500.0,0.00025479,3]
[329404715,1718320355698,-500.0,0.00025479,3]
[329404716,1718320355717,-500.0,0.00025479,3]
[329404717,1718320355730,-500.0,0.00025479,3]
[329404718,1718320355741,-500.0,0.00025479,3]
[329404719,1718320355786,-446.28735733,0.00025479,3]
[329404720,1718320355805,-500.0,0.00025479,3]
[329404721,1718320355817,-464.02665352,0.00025479,3]
[329404722,1718320355837,-500.0,0.00025479,3]
[329404723,1718320355855,-540.05,0.00025479,3]
[329404724,1718320355867,-500.0,0.00025479,3]
[329404725,1718320355878,-500.0,0.00025479,3]
[329404726,1718320355910,-500.0,0.00025479,3]
[329404727,1718320355923,-500.0,0.00025479,3]
[329404728,1718320355939,-500.0,0.00025479,3]
[329404729,1718320355956,-500.0,0.00025479,3]
[329404730,1718320355971,-500.0,0.00025479,3]
[329404731,1718320356017,-163.30141591,0.00025479,3]
[329404732,1718320356040,-640.42087016,0.00025479,3]
[329404733,1718320356077,-500.0,0.00025479,3]
[329404734,1718320356114,-500.0,0.00025479,3]
[329404735,1718320356150,-500.0,0.00025479,3]
[329404736,1718320356209,-500.0,0.00025479,3]
[329404737,1718320356246,-500.0,0.00025479,3]
[329404738,1718320356259,-500.0,0.00025479,3]
[329404739,1718320356294,-500.0,0.00025479,3]
[329404740,1718320356309,-500.0,0.00025479,3]
[329404741,1718320356336,-625.8,0.00025479,3]
[329404742,1718320356388,-500.0,0.00025479,3]
[329404743,1718320356402,-500.0,0.00025479,3]
[329404744,1718320356413,-500.0,0.00025479,3]
[329404745,1718320356431,-730.17,0.00025479,3]
[329404746,1718320356444,-500.0,0.00025479,3]
[329404747,1718320356460,-500.0,0.00025479,3]
[329404748,1718320356497,-500.0,0.00025479,3]
[329404749,1718320356540,-500.0,0.00025479,3]
[329404750,1718320356551,-500.0,0.00025479,3]
[329404751,1718320356562,-500.0,0.00025479,3]
[329404752,1718320356580,-250.0,0.00025479,3]
[329404753,1718320356591,-500.0,0.00025479,3]
[329404754,1718320356603,-500.0,0.00025479,3]
[329404755,1718320356614,-500.0,0.00025479,3]
[329404756,1718320356625,-500.0,0.00025479,3]
[329404757,1718320356642,-622.47,0.00025479,3]
[329404758,1718320356653,-884.26,0.00025479,3]
[329404759,1718320356664,-500.0,0.00025479,3]
[329404760,1718320356675,-557.2898652,0.00025479,3]
[329404761,1718320356701,-500.0,0.00025479,3]
[329404762,1718320356713,-500.0,0.00025479,3]
[329404763,1718320356726,-500.0,0.00025479,3]
[329404764,1718320356749,-500.0,0.00025479,3]
[329404765,1718320356776,-500.0,0.00025479,3]
[329404766,1718320356788,-557.40776929,0.00025479,3]
[329404767,1718320356816,-1540.73,0.00025479,3]
[329404768,1718320356860,-500.0,0.00025479,3]
[329404769,1718320356872,-500.0,0.00025479,3]
[329404770,1718320356885,-500.0,0.00025479,3]
[329404771,1718320356896,-500.0,0.00025479,3]
[329404772,1718320357170,-500.0,0.00025479,3]
[329404773,1718320357191,-500.0,0.00025479,3]
[329404774,1718320357216,-500.0,0.00025479,3]
[329404775,1718320357227,-500.0,0.00025479,3]